[Event "Titled Tuesday Blitz May 24 Late 2022"]
[White "Halak, Miklos"]
[Black "Vovk, Orest"]
[WhiteFideId "726400"]
[BlackFideId "14113490"]
[WhiteElo "2197"]
[BlackElo "2203"]
[Result "0-1"]
[Round "04"]
[TimeControl "180+1"]
[Date "2022.05.25"]
[WhiteClock "0:00:06"]
[BlackClock "0:00:11"]

1. e4 {[%clk 0:02:59]}  g5 {[%clk 0:02:57]} 2. d4 {[%clk 0:02:58]}  g4 {[%clk 0:02:57]} 3. Qxg4 {[%clk 0:02:56]}  d5 {[%clk 0:02:56]} 4. Qh4 {[%clk 0:02:51]}  dxe4 {[%clk 0:02:57]} 5. Qxe4 {[%clk 0:02:51]}  Nf6 {[%clk 0:02:57]} 6. Qd3 {[%clk 0:02:50]}  Nc6 {[%clk 0:02:58]} 7. c3 {[%clk 0:02:50]}  Qd5 {[%clk 0:02:57]} 8. Qf3 {[%clk 0:02:38]}  Bg4 {[%clk 0:02:52]} 9. Qxd5 {[%clk 0:02:37]}  Nxd5 {[%clk 0:02:53]} 10. Be2 {[%clk 0:02:33]}  Bxe2 {[%clk 0:02:49]} 11. Nxe2 {[%clk 0:02:33]}  O-O-O {[%clk 0:02:50]} 12. Nf4 {[%clk 0:02:31]}  e5 {[%clk 0:02:49]} 13. dxe5 {[%clk 0:02:27]}  Nxe5 {[%clk 0:02:47]} 14. O-O {[%clk 0:02:25]}  Nxf4 {[%clk 0:02:39]} 15. Bxf4 {[%clk 0:02:25]}  Nd3 {[%clk 0:02:40]} 16. Bc1 {[%clk 0:02:12]}  Bc5 {[%clk 0:02:19]} 17. Be3 {[%clk 0:02:12]}  Bxe3 {[%clk 0:01:56]} 18. fxe3 {[%clk 0:02:13]}  Rhe8 {[%clk 0:01:56]} 19. Rxf7 {[%clk 0:02:03]}  Rxe3 {[%clk 0:01:53]} 20. Na3 {[%clk 0:02:01]}  Nxb2 {[%clk 0:01:50]} 21. Nb5 {[%clk 0:01:57]}  c6 {[%clk 0:01:46]} 22. Rb1 {[%clk 0:01:37]}  Re2 {[%clk 0:01:38]} 23. Nd4 {[%clk 0:01:29]}  Rd2 {[%clk 0:01:34]} 24. Rxh7 {[%clk 0:01:24]}  Rg8 {[%clk 0:01:29]} 25. g3 {[%clk 0:01:24]}  Re8 {[%clk 0:01:23]} 26. Rf7 {[%clk 0:01:02]}  Re3 {[%clk 0:01:18]} 27. Rf2 {[%clk 0:00:45]}  Nc4 {[%clk 0:01:11]} 28. Rf8+ {[%clk 0:00:42]}  Kc7 {[%clk 0:01:09]} 29. Rf7+ {[%clk 0:00:41]}  Kd8 {[%clk 0:01:04]} 30. Rbxb7 {[%clk 0:00:32]}  Re1+ {[%clk 0:01:03]} 31. Rf1 {[%clk 0:00:32]}  Rxf1+ {[%clk 0:01:03]} 32. Kxf1 {[%clk 0:00:33]}  Rxa2 {[%clk 0:00:59]} 33. Nxc6+ {[%clk 0:00:31]}  Kc8 {[%clk 0:00:59]} 34. Rxa7 {[%clk 0:00:31]}  Rxh2 {[%clk 0:00:59]} 35. Kg1 {[%clk 0:00:24]}  Rc2 {[%clk 0:00:57]} 36. Na5 {[%clk 0:00:11]}  Ne3 {[%clk 0:00:55]} 37. Rg7 {[%clk 0:00:08]}  Rg2+ {[%clk 0:00:51]} 38. Kh1 {[%clk 0:00:08]}  Ra2 {[%clk 0:00:51]} 39. Nc6 {[%clk 0:00:07]}  Rc2 {[%clk 0:00:50]} 40. Ne5 {[%clk 0:00:07]}  Rxc3 {[%clk 0:00:49]} 41. g4 {[%clk 0:00:08]}  Rc2 {[%clk 0:00:46]} 42. g5 {[%clk 0:00:08]}  Nf5 {[%clk 0:00:45]} 43. Rf7 {[%clk 0:00:08]}  Ng3+ {[%clk 0:00:37]} 44. Kg1 {[%clk 0:00:07]}  Rc5 {[%clk 0:00:36]} 45. Nd3 {[%clk 0:00:06]}  Rxg5 {[%clk 0:00:35]} 46. Kf2 {[%clk 0:00:07]}  Ne4+ {[%clk 0:00:35]} 47. Ke3 {[%clk 0:00:07]}  Nd6 {[%clk 0:00:34]} 48. Rf8+ {[%clk 0:00:07]}  Kc7 {[%clk 0:00:34]} 49. Rf4 {[%clk 0:00:08]}  Rg3+ {[%clk 0:00:33]} 50. Kd4 {[%clk 0:00:07]}  Rh3 {[%clk 0:00:29]} 51. Nc5 {[%clk 0:00:07]}  Kc6 {[%clk 0:00:27]} 52. Ne4 {[%clk 0:00:06]}  Nb5+ {[%clk 0:00:26]} 53. Ke5 {[%clk 0:00:07]}  Rh5+ {[%clk 0:00:19]} 54. Rf5 {[%clk 0:00:07]}  Rh1 {[%clk 0:00:20]} 55. Rf6+ {[%clk 0:00:07]}  Kc7 {[%clk 0:00:20]} 56. Rf7+ {[%clk 0:00:06]}  Kb6 {[%clk 0:00:20]} 57. Rf6+ {[%clk 0:00:07]}  Ka5 {[%clk 0:00:21]} 58. Rf5 {[%clk 0:00:07]}  Kb4 {[%clk 0:00:21]} 59. Nd6 {[%clk 0:00:03]}  Re1+ {[%clk 0:00:20]} 60. Ne4 {[%clk 0:00:03]}  Nc3 {[%clk 0:00:19]} 61. Rf4 {[%clk 0:00:04]}  Kc4 {[%clk 0:00:16]} 62. Kf5 {[%clk 0:00:04]}  Nd5 {[%clk 0:00:16]} 63. Rg4 {[%clk 0:00:02]}  Ne3+ {[%clk 0:00:15]} 64. Kf4 {[%clk 0:00:02]}  Nxg4 {[%clk 0:00:16]} 65. Nd2+ {[%clk 0:00:02]}  Kd3 {[%clk 0:00:16]} 66. Nf3 {[%clk 0:00:03]}  Re4+ {[%clk 0:00:16]} 67. Kg3 {[%clk 0:00:03]}  Ne5 {[%clk 0:00:13]} 68. Ng1 {[%clk 0:00:03]}  Rg4+ {[%clk 0:00:13]} 69. Kf2 {[%clk 0:00:04]}  Rf4+ {[%clk 0:00:12]} 70. Kg3 {[%clk 0:00:04]}  Rf8 {[%clk 0:00:13]} 71. Nh3 {[%clk 0:00:04]}  Ke3 {[%clk 0:00:11]} 72. Ng5 {[%clk 0:00:04]}  Rg8 {[%clk 0:00:11]} 73. Kh4 {[%clk 0:00:05]}  Nf3+ {[%clk 0:00:11]} 74. Kh5 {[%clk 0:00:06]}  Rxg5+ {[%clk 0:00:11]} 75. Kh6 {[%clk 0:00:06]}  Kf4 {[%clk 0:00:11]} 0-1


[Site "https://www.chess.com"]

[Event "Titled Tuesday Blitz May 24 Late 2022"]
[White "Harris, Ian"]
[Black "Redor, Menandro"]
[WhiteFideId "2020092"]
[BlackFideId "5222010"]
[WhiteElo "2419"]
[BlackElo "1986"]
[Result "0-1"]
[Round "04"]
[TimeControl "180+1"]
[Date "2022.05.25"]
[WhiteClock "0:00:02"]
[BlackClock "0:00:19"]

1. e4 {[%clk 0:03:00]}  c5 {[%clk 0:02:48]} 2. d4 {[%clk 0:02:58]}  cxd4 {[%clk 0:02:36]} 3. c3 {[%clk 0:02:58]}  g6 {[%clk 0:02:35]} 4. Nf3 {[%clk 0:02:57]}  Bg7 {[%clk 0:02:33]} 5. Bc4 {[%clk 0:02:57]}  e6 {[%clk 0:02:09]} 6. O-O {[%clk 0:02:12]}  Ne7 {[%clk 0:02:01]} 7. cxd4 {[%clk 0:02:05]}  d5 {[%clk 0:01:50]} 8. exd5 {[%clk 0:02:04]}  exd5 {[%clk 0:01:51]} 9. Bd3 {[%clk 0:02:04]}  O-O {[%clk 0:01:49]} 10. Nc3 {[%clk 0:02:04]}  Nbc6 {[%clk 0:01:49]} 11. Be3 {[%clk 0:01:59]}  Bg4 {[%clk 0:01:48]} 12. Re1 {[%clk 0:01:52]}  Nxd4 {[%clk 0:01:20]} 13. Bxd4 {[%clk 0:01:40]}  Bxd4 {[%clk 0:01:21]} 14. Bxg6 {[%clk 0:00:59]}  Bxf3 {[%clk 0:00:53]} 15. Bxh7+ {[%clk 0:00:23]}  Kxh7 {[%clk 0:00:54]} 16. Qxf3 {[%clk 0:00:21]}  Bxc3 {[%clk 0:00:50]} 17. Qh5+ {[%clk 0:00:16]}  Kg7 {[%clk 0:00:47]} 18. bxc3 {[%clk 0:00:13]}  Ng6 {[%clk 0:00:47]} 19. Rad1 {[%clk 0:00:12]}  Re8 {[%clk 0:00:41]} 20. Rf1 {[%clk 0:00:09]}  Re5 {[%clk 0:00:38]} 21. Qg4 {[%clk 0:00:07]}  Qf6 {[%clk 0:00:27]} 22. h3 {[%clk 0:00:06]}  Rae8 {[%clk 0:00:19]} 23. g3 {[%clk 0:00:02]}  Rg5 {[%clk 0:00:19]} 0-1


[Site "https://www.chess.com"]

[Event "Titled Tuesday Blitz May 24 Late 2022"]
[White "Jacobson, Brandon"]
[Black "Zakhartsov, Vladimir"]
[WhiteFideId "30901561"]
[BlackFideId "4145097"]
[WhiteElo "2362"]
[BlackElo "2428"]
[Result "0-1"]
[Round "04"]
[TimeControl "180+1"]
[Date "2022.05.24"]
[WhiteClock "0:00:52"]
[BlackClock "0:00:29"]

1. Nf3 {[%clk 0:03:00]}  c5 {[%clk 0:02:59]} 2. c4 {[%clk 0:03:00]}  Nf6 {[%clk 0:02:59]} 3. Nc3 {[%clk 0:03:01]}  Nc6 {[%clk 0:02:58]} 4. d4 {[%clk 0:03:01]}  cxd4 {[%clk 0:02:59]} 5. Nxd4 {[%clk 0:03:02]}  g6 {[%clk 0:02:58]} 6. e4 {[%clk 0:03:02]}  d6 {[%clk 0:02:57]} 7. Be2 {[%clk 0:03:02]}  Nxd4 {[%clk 0:02:57]} 8. Qxd4 {[%clk 0:03:03]}  Bg7 {[%clk 0:02:57]} 9. Be3 {[%clk 0:03:03]}  O-O {[%clk 0:02:56]} 10. Qd2 {[%clk 0:03:03]}  a5 {[%clk 0:02:56]} 11. O-O-O {[%clk 0:03:04]}  a4 {[%clk 0:02:50]} 12. f3 {[%clk 0:03:04]}  Be6 {[%clk 0:02:50]} 13. Kb1 {[%clk 0:03:04]}  Rc8 {[%clk 0:02:48]} 14. Nd5 {[%clk 0:03:04]}  a3 {[%clk 0:02:45]} 15. b3 {[%clk 0:02:53]}  b5 {[%clk 0:02:41]} 16. Nxf6+ {[%clk 0:02:43]}  Bxf6 {[%clk 0:02:40]} 17. cxb5 {[%clk 0:02:44]}  Bc3 {[%clk 0:02:13]} 18. Qd3 {[%clk 0:02:41]}  Bxb3 {[%clk 0:02:03]} 19. Rc1 {[%clk 0:02:30]}  Qa5 {[%clk 0:01:55]} 20. Bd4 {[%clk 0:02:29]}  Bc2+ {[%clk 0:00:43]} 21. Qxc2 {[%clk 0:02:12]}  Bxd4 {[%clk 0:00:40]} 22. Qb3 {[%clk 0:01:59]}  Bb2 {[%clk 0:00:39]} 23. Rxc8 {[%clk 0:01:52]}  Rxc8 {[%clk 0:00:39]} 24. Bc4 {[%clk 0:01:53]}  Qc7 {[%clk 0:00:29]} 25. Bxf7+ {[%clk 0:00:57]}  Kg7 {[%clk 0:00:29]} 26. Qe3 {[%clk 0:00:52]} 0-1


[Site "https://www.chess.com"]

[Event "Titled Tuesday Blitz May 24 Late 2022"]
[White "Jia, Haoxiang"]
[Black "Riehle, Marco"]
[WhiteFideId "8602999"]
[BlackFideId "12904392"]
[WhiteElo "2613"]
[BlackElo "2462"]
[Result "1-0"]
[Round "04"]
[TimeControl "180+1"]
[Date "2022.05.24"]
[WhiteClock "0:00:53"]
[BlackClock "0:00:18"]

1. d4 {[%clk 0:03:00]}  d5 {[%clk 0:02:59]} 2. Nc3 {[%clk 0:03:00]}  e6 {[%clk 0:02:58]} 3. Bf4 {[%clk 0:03:00]}  c5 {[%clk 0:02:58]} 4. e3 {[%clk 0:03:00]}  Nf6 {[%clk 0:02:57]} 5. h3 {[%clk 0:02:59]}  Bd6 {[%clk 0:02:56]} 6. Bxd6 {[%clk 0:02:58]}  Qxd6 {[%clk 0:02:57]} 7. Nf3 {[%clk 0:02:58]}  O-O {[%clk 0:02:55]} 8. Bd3 {[%clk 0:02:57]}  a6 {[%clk 0:02:47]} 9. O-O {[%clk 0:02:57]}  b5 {[%clk 0:02:47]} 10. dxc5 {[%clk 0:02:55]}  Qxc5 {[%clk 0:02:48]} 11. a4 {[%clk 0:02:54]}  b4 {[%clk 0:02:47]} 12. Ne2 {[%clk 0:02:54]}  Nbd7 {[%clk 0:02:42]} 13. Ng3 {[%clk 0:02:38]}  Re8 {[%clk 0:02:36]} 14. Qd2 {[%clk 0:02:36]}  e5 {[%clk 0:02:35]} 15. Bf5 {[%clk 0:02:35]}  Nf8 {[%clk 0:02:32]} 16. Rfd1 {[%clk 0:02:34]}  Bxf5 {[%clk 0:02:26]} 17. Nxf5 {[%clk 0:02:34]}  Rac8 {[%clk 0:02:27]} 18. Rac1 {[%clk 0:02:24]}  Qa5 {[%clk 0:02:08]} 19. Nd6 {[%clk 0:02:19]}  Qxa4 {[%clk 0:02:05]} 20. Nxc8 {[%clk 0:02:19]}  Rxc8 {[%clk 0:02:05]} 21. Nxe5 {[%clk 0:02:19]}  h6 {[%clk 0:02:04]} 22. b3 {[%clk 0:02:16]}  Qe8 {[%clk 0:02:01]} 23. Qd4 {[%clk 0:02:13]}  Ne6 {[%clk 0:02:01]} 24. Qxb4 {[%clk 0:02:13]}  Ng5 {[%clk 0:01:57]} 25. Nd3 {[%clk 0:02:09]}  Nfe4 {[%clk 0:01:50]} 26. Nf4 {[%clk 0:02:06]}  Nc3 {[%clk 0:01:50]} 27. Rd3 {[%clk 0:02:04]}  Qe5 {[%clk 0:01:47]} 28. Qd4 {[%clk 0:01:58]}  Qc7 {[%clk 0:01:41]} 29. Ra1 {[%clk 0:01:54]}  Ne6 {[%clk 0:01:37]} 30. Nxe6 {[%clk 0:01:53]}  fxe6 {[%clk 0:01:37]} 31. Qg4 {[%clk 0:01:49]}  Qb6 {[%clk 0:01:29]} 32. Kh1 {[%clk 0:01:38]}  Ne4 {[%clk 0:01:29]} 33. Rf1 {[%clk 0:01:33]}  Rxc2 {[%clk 0:01:28]} 34. Kg1 {[%clk 0:01:30]}  a5 {[%clk 0:01:24]} 35. Rd4 {[%clk 0:01:29]}  Rb2 {[%clk 0:01:19]} 36. Rc1 {[%clk 0:01:20]}  Kh7 {[%clk 0:01:12]} 37. Rxe4 {[%clk 0:01:15]}  dxe4 {[%clk 0:01:12]} 38. Qxe4+ {[%clk 0:01:15]}  g6 {[%clk 0:01:12]} 39. Qe5 {[%clk 0:01:12]}  Rxb3 {[%clk 0:00:35]} 40. Rc7+ {[%clk 0:01:10]}  Qxc7 {[%clk 0:00:33]} 41. Qxc7+ {[%clk 0:01:10]}  Kg8 {[%clk 0:00:34]} 42. Qxa5 {[%clk 0:01:05]}  Rb7 {[%clk 0:00:34]} 43. Qe5 {[%clk 0:01:04]}  h5 {[%clk 0:00:28]} 44. Qxe6+ {[%clk 0:01:03]}  Kh7 {[%clk 0:00:29]} 45. Kh2 {[%clk 0:01:02]}  h4 {[%clk 0:00:27]} 46. Qe4 {[%clk 0:01:02]}  Rf7 {[%clk 0:00:21]} 47. Qxh4+ {[%clk 0:01:02]}  Kg7 {[%clk 0:00:21]} 48. Qd4+ {[%clk 0:01:02]}  Kg8 {[%clk 0:00:21]} 49. Kg3 {[%clk 0:01:02]}  g5 {[%clk 0:00:22]} 50. Qd5 {[%clk 0:01:02]}  g4 {[%clk 0:00:21]} 51. hxg4 {[%clk 0:01:01]}  Kg7 {[%clk 0:00:21]} 52. g5 {[%clk 0:01:02]}  Rf8 {[%clk 0:00:19]} 53. f4 {[%clk 0:01:02]}  Rf7 {[%clk 0:00:19]} 54. f5 {[%clk 0:01:02]}  Rf8 {[%clk 0:00:19]} 55. Qe5+ {[%clk 0:01:02]}  Kg8 {[%clk 0:00:19]} 56. f6 {[%clk 0:01:02]}  Rf7 {[%clk 0:00:19]} 57. g6 {[%clk 0:01:02]}  Rxf6 {[%clk 0:00:18]} 58. Qe8+ {[%clk 0:00:56]}  Kg7 {[%clk 0:00:18]} 59. Qe7+ {[%clk 0:00:55]}  Kxg6 {[%clk 0:00:19]} 60. Qxf6+ {[%clk 0:00:54]}  Kh5 {[%clk 0:00:18]} 61. Qf5+ {[%clk 0:00:53]} 1-0


[Site "https://www.chess.com"]

[Event "Titled Tuesday Blitz May 24 Late 2022"]
[White "Joubert, Dantelle"]
[Black "Vivas Zamora, Fabian Ernesto"]
[WhiteFideId "14310813"]
[BlackFideId "3902480"]
[WhiteElo "1507"]
[BlackElo "1987"]
[Result "0-1"]
[Round "04"]
[TimeControl "180+1"]
[Date "2022.05.25"]
[WhiteClock "0:00:09"]
[BlackClock "0:00:12"]

1. Nf3 {[%clk 0:03:00]}  Nf6 {[%clk 0:02:59]} 2. c4 {[%clk 0:02:59]}  c5 {[%clk 0:02:56]} 3. g3 {[%clk 0:02:59]}  d5 {[%clk 0:02:56]} 4. cxd5 {[%clk 0:02:58]}  Nxd5 {[%clk 0:02:57]} 5. Bg2 {[%clk 0:02:57]}  Nc6 {[%clk 0:02:57]} 6. d4 {[%clk 0:02:54]}  cxd4 {[%clk 0:02:18]} 7. Nxd4 {[%clk 0:02:53]}  Ndb4 {[%clk 0:02:17]} 8. Nxc6 {[%clk 0:02:42]}  Qxd1+ {[%clk 0:02:16]} 9. Kxd1 {[%clk 0:02:41]}  Nxc6 {[%clk 0:02:16]} 10. Bxc6+ {[%clk 0:02:27]}  bxc6 {[%clk 0:02:16]} 11. Nc3 {[%clk 0:02:24]}  e5 {[%clk 0:01:49]} 12. Be3 {[%clk 0:02:21]}  Rb8 {[%clk 0:01:38]} 13. b3 {[%clk 0:02:13]}  a5 {[%clk 0:01:33]} 14. Kc2 {[%clk 0:02:03]}  Ba3 {[%clk 0:01:28]} 15. Bd2 {[%clk 0:01:46]}  Bf5+ {[%clk 0:01:20]} 16. e4 {[%clk 0:01:44]}  Bg6 {[%clk 0:01:21]} 17. g4 {[%clk 0:01:24]}  h5 {[%clk 0:01:15]} 18. h3 {[%clk 0:01:21]}  Ke7 {[%clk 0:01:05]} 19. Rae1 {[%clk 0:01:04]}  Rhd8 {[%clk 0:00:41]} 20. Rhg1 {[%clk 0:00:42]}  hxg4 {[%clk 0:00:30]} 21. hxg4 {[%clk 0:00:41]}  f6 {[%clk 0:00:29]} 22. f3 {[%clk 0:00:28]}  Bb4 {[%clk 0:00:27]} 23. Rd1 {[%clk 0:00:20]}  Bf7 {[%clk 0:00:19]} 24. Na4 {[%clk 0:00:15]}  c5 {[%clk 0:00:12]} 25. Bc1 {[%clk 0:00:09]}  c4 {[%clk 0:00:12]} 0-1


[Site "https://www.chess.com"]

[Event "Titled Tuesday Blitz May 24 Late 2022"]
[White "Karttunen, Mika"]
[Black "Mekhitarian, Krikor Sevag"]
[WhiteFideId "502081"]
[BlackFideId "2107660"]
[WhiteElo "2343"]
[BlackElo "2598"]
[Result "1-0"]
[Round "04"]
[TimeControl "180+1"]
[Date "2022.05.24"]
[WhiteClock "0:00:15"]
[BlackClock "0:00:06"]

1. d4 {[%clk 0:03:00]}  d5 {[%clk 0:02:59]} 2. c4 {[%clk 0:03:00]}  dxc4 {[%clk 0:03:00]} 3. e3 {[%clk 0:02:56]}  Nf6 {[%clk 0:03:00]} 4. Bxc4 {[%clk 0:02:55]}  e6 {[%clk 0:03:01]} 5. Nf3 {[%clk 0:02:55]}  c5 {[%clk 0:03:01]} 6. O-O {[%clk 0:02:52]}  a6 {[%clk 0:03:02]} 7. Be2 {[%clk 0:02:48]}  Nbd7 {[%clk 0:02:59]} 8. b3 {[%clk 0:02:48]}  b6 {[%clk 0:02:57]} 9. Bb2 {[%clk 0:02:48]}  Bb7 {[%clk 0:02:58]} 10. Nbd2 {[%clk 0:02:44]}  Be7 {[%clk 0:02:56]} 11. Nc4 {[%clk 0:02:35]}  b5 {[%clk 0:02:42]} 12. Nce5 {[%clk 0:02:31]}  cxd4 {[%clk 0:02:28]} 13. Nxd7 {[%clk 0:02:25]}  Qxd7 {[%clk 0:02:26]} 14. Qxd4 {[%clk 0:02:16]}  Qxd4 {[%clk 0:02:18]} 15. Bxd4 {[%clk 0:02:16]}  O-O {[%clk 0:02:18]} 16. a4 {[%clk 0:02:06]}  b4 {[%clk 0:02:18]} 17. Ne5 {[%clk 0:01:58]}  Rfc8 {[%clk 0:02:16]} 18. Rfc1 {[%clk 0:01:57]}  Nd5 {[%clk 0:02:13]} 19. Bc4 {[%clk 0:01:52]}  Rc7 {[%clk 0:01:59]} 20. Kf1 {[%clk 0:01:27]}  Rac8 {[%clk 0:01:57]} 21. f3 {[%clk 0:01:19]}  Kf8 {[%clk 0:01:47]} 22. e4 {[%clk 0:01:05]}  Nc3 {[%clk 0:01:46]} 23. Bb6 {[%clk 0:00:51]}  Bd6 {[%clk 0:01:44]} 24. Bxc7 {[%clk 0:00:51]}  Rxc7 {[%clk 0:01:44]} 25. Nd3 {[%clk 0:00:51]}  a5 {[%clk 0:01:42]} 26. g3 {[%clk 0:00:48]}  g5 {[%clk 0:01:41]} 27. e5 {[%clk 0:00:47]}  Be7 {[%clk 0:01:41]} 28. Kf2 {[%clk 0:00:47]}  Rd7 {[%clk 0:01:39]} 29. Rc2 {[%clk 0:00:45]}  Kg7 {[%clk 0:01:38]} 30. Re1 {[%clk 0:00:44]}  h5 {[%clk 0:01:38]} 31. Rf1 {[%clk 0:00:24]}  Rd4 {[%clk 0:01:30]} 32. Ke1 {[%clk 0:00:24]}  h4 {[%clk 0:01:27]} 33. Rcf2 {[%clk 0:00:24]}  Nxa4 {[%clk 0:00:58]} 34. f4 {[%clk 0:00:20]}  Be4 {[%clk 0:00:52]} 35. fxg5 {[%clk 0:00:19]}  Bg6 {[%clk 0:00:45]} 36. Nf4 {[%clk 0:00:18]}  Nc3 {[%clk 0:00:43]} 37. Be2 {[%clk 0:00:14]}  hxg3 {[%clk 0:00:37]} 38. hxg3 {[%clk 0:00:14]}  Bxg5 {[%clk 0:00:38]} 39. Rh1 {[%clk 0:00:15]}  Ne4 {[%clk 0:00:25]} 40. Nxg6 {[%clk 0:00:15]}  Nxf2 {[%clk 0:00:23]} 41. Kxf2 {[%clk 0:00:15]}  Kxg6 {[%clk 0:00:22]} 42. Ra1 {[%clk 0:00:15]}  Bd8 {[%clk 0:00:20]} 43. Kf3 {[%clk 0:00:11]}  Bb6 {[%clk 0:00:19]} 44. Bc4 {[%clk 0:00:11]}  Rd2 {[%clk 0:00:18]} 45. Re1 {[%clk 0:00:10]}  Rf2+ {[%clk 0:00:18]} 46. Ke4 {[%clk 0:00:10]}  Kg7 {[%clk 0:00:14]} 47. Rd1 {[%clk 0:00:11]}  Rg2 {[%clk 0:00:13]} 48. Rd7 {[%clk 0:00:11]}  Kg6 {[%clk 0:00:11]} 49. Kf3 {[%clk 0:00:11]}  Ra2 {[%clk 0:00:08]} 50. Bb5 {[%clk 0:00:10]}  Rc2 {[%clk 0:00:06]} 51. Rb7 {[%clk 0:00:10]}  Bd4 {[%clk 0:00:05]} 52. Ke4 {[%clk 0:00:10]}  Bc3 {[%clk 0:00:02]} 53. Be8 {[%clk 0:00:10]}  Re2+ {[%clk 0:00:03]} 54. Kd3 {[%clk 0:00:10]}  Rxe5 {[%clk 0:00:03]} 55. Bxf7+ {[%clk 0:00:09]}  Kg5 {[%clk 0:00:03]} 56. Be8 {[%clk 0:00:10]}  Rd5+ {[%clk 0:00:04]} 57. Ke4 {[%clk 0:00:08]}  Rd4+ {[%clk 0:00:04]} 58. Ke3 {[%clk 0:00:09]}  Rd8 {[%clk 0:00:03]} 59. Bb5 {[%clk 0:00:08]}  Bd4+ {[%clk 0:00:01]} 60. Ke4 {[%clk 0:00:09]}  Bc3 {[%clk 0:00:02]} 61. Bc4 {[%clk 0:00:09]}  Rd4+ {[%clk 0:00:02]} 62. Ke3 {[%clk 0:00:09]}  e5 {[%clk 0:00:03]} 63. Rg7+ {[%clk 0:00:09]}  Kf6 {[%clk 0:00:03]} 64. Rg8 {[%clk 0:00:09]}  Rd1 {[%clk 0:00:03]} 65. g4 {[%clk 0:00:09]}  Rd4 {[%clk 0:00:01]} 66. g5+ {[%clk 0:00:09]}  Kf5 {[%clk 0:00:02]} 67. g6 {[%clk 0:00:08]}  Rg4 {[%clk 0:00:03]} 68. g7 {[%clk 0:00:08]}  Kf6 {[%clk 0:00:03]} 69. Rf8+ {[%clk 0:00:08]}  Ke7 {[%clk 0:00:01]} 70. g8=Q {[%clk 0:00:08]}  Rxg8 {[%clk 0:00:02]} 71. Rxg8 {[%clk 0:00:08]}  Kd6 {[%clk 0:00:03]} 72. Ke4 {[%clk 0:00:09]}  Bd4 {[%clk 0:00:02]} 73. Rc8 {[%clk 0:00:09]}  a4 {[%clk 0:00:03]} 74. bxa4 {[%clk 0:00:09]}  Kd7 {[%clk 0:00:03]} 75. Ra8 {[%clk 0:00:09]}  Kd6 {[%clk 0:00:04]} 76. Bb3 {[%clk 0:00:09]}  Kc5 {[%clk 0:00:05]} 77. Rb8 {[%clk 0:00:09]}  Bc3 {[%clk 0:00:04]} 78. Rb5+ {[%clk 0:00:10]}  Kc6 {[%clk 0:00:05]} 79. Rd5 {[%clk 0:00:09]}  Kb6 {[%clk 0:00:05]} 80. a5+ {[%clk 0:00:09]}  Kc6 {[%clk 0:00:05]} 81. Ba4+ {[%clk 0:00:09]}  Kb7 {[%clk 0:00:05]} 82. Rb5+ {[%clk 0:00:10]}  Ka6 {[%clk 0:00:05]} 83. Rd5 {[%clk 0:00:10]}  Bd4 {[%clk 0:00:05]} 84. Bb3 {[%clk 0:00:10]}  Bf2 {[%clk 0:00:03]} 85. Bc4+ {[%clk 0:00:10]}  Ka7 {[%clk 0:00:03]} 86. Rb5 {[%clk 0:00:11]}  Be1 {[%clk 0:00:02]} 87. Rxe5 {[%clk 0:00:10]}  b3 {[%clk 0:00:03]} 88. Bxb3 {[%clk 0:00:10]}  Ka6 {[%clk 0:00:03]} 89. Bc4+ {[%clk 0:00:11]}  Ka7 {[%clk 0:00:03]} 90. Rb5 {[%clk 0:00:11]}  Bf2 {[%clk 0:00:03]} 91. Kd3 {[%clk 0:00:12]}  Bg1 {[%clk 0:00:03]} 92. Kc2 {[%clk 0:00:12]}  Bf2 {[%clk 0:00:04]} 93. Kb3 {[%clk 0:00:13]}  Bd4 {[%clk 0:00:05]} 94. Ka4 {[%clk 0:00:14]}  Be3 {[%clk 0:00:05]} 95. Rd5 {[%clk 0:00:14]}  Ka8 {[%clk 0:00:05]} 96. Kb5 {[%clk 0:00:15]}  Ba7 {[%clk 0:00:05]} 97. Rd7 {[%clk 0:00:16]}  Bb8 {[%clk 0:00:06]} 98. Bd5# {[%clk 0:00:15]} 1-0


[Site "https://www.chess.com"]

[Event "Titled Tuesday Blitz May 24 Late 2022"]
[White "Kobalia, Mikhail"]
[Black "Galiana Fernandez, Adrian"]
[WhiteFideId "4119150"]
[BlackFideId "32010150"]
[WhiteElo "2667"]
[BlackElo "2133"]
[Result "1-0"]
[Round "04"]
[TimeControl "180+1"]
[Date "2022.05.25"]
[WhiteClock "0:01:36"]
[BlackClock "0:00:42"]

1. b3 {[%clk 0:03:00]}  Nf6 {[%clk 0:02:53]} 2. Bb2 {[%clk 0:03:01]}  c5 {[%clk 0:02:54]} 3. Nf3 {[%clk 0:02:59]}  Nc6 {[%clk 0:02:54]} 4. e3 {[%clk 0:02:58]}  g6 {[%clk 0:02:54]} 5. d4 {[%clk 0:02:58]}  cxd4 {[%clk 0:02:54]} 6. exd4 {[%clk 0:02:57]}  d5 {[%clk 0:02:54]} 7. c4 {[%clk 0:02:58]}  Bg7 {[%clk 0:02:54]} 8. Nc3 {[%clk 0:02:58]}  O-O {[%clk 0:02:54]} 9. Be2 {[%clk 0:02:58]}  Bg4 {[%clk 0:02:52]} 10. O-O {[%clk 0:02:58]}  dxc4 {[%clk 0:02:49]} 11. d5 {[%clk 0:02:56]}  Nxd5 {[%clk 0:02:26]} 12. Nxd5 {[%clk 0:02:55]}  Bxb2 {[%clk 0:02:25]} 13. Rb1 {[%clk 0:02:55]}  Bg7 {[%clk 0:02:21]} 14. bxc4 {[%clk 0:02:55]}  Rb8 {[%clk 0:01:59]} 15. Qa4 {[%clk 0:02:53]}  Re8 {[%clk 0:01:40]} 16. Rfd1 {[%clk 0:02:52]}  Qa5 {[%clk 0:01:39]} 17. Qc2 {[%clk 0:02:24]}  e6 {[%clk 0:01:18]} 18. Ne3 {[%clk 0:02:20]}  Bxf3 {[%clk 0:01:17]} 19. Bxf3 {[%clk 0:02:19]}  Nd4 {[%clk 0:01:17]} 20. Qe4 {[%clk 0:02:03]}  Nxf3+ {[%clk 0:01:17]} 21. Qxf3 {[%clk 0:02:02]}  Qc7 {[%clk 0:01:14]} 22. h4 {[%clk 0:01:56]}  h5 {[%clk 0:01:12]} 23. g4 {[%clk 0:01:54]}  hxg4 {[%clk 0:01:11]} 24. Qxg4 {[%clk 0:01:54]}  Kf8 {[%clk 0:00:55]} 25. h5 {[%clk 0:01:54]}  gxh5 {[%clk 0:00:54]} 26. Qxh5 {[%clk 0:01:55]}  Ke7 {[%clk 0:00:48]} 27. Re1 {[%clk 0:01:52]}  Qe5 {[%clk 0:00:45]} 28. Nd5+ {[%clk 0:01:46]}  Kd6 {[%clk 0:00:43]} 29. Rxe5 {[%clk 0:01:44]}  Bxe5 {[%clk 0:00:43]} 30. c5+ {[%clk 0:01:36]}  Kxd5 {[%clk 0:00:42]} 31. Rd1+ {[%clk 0:01:36]} 1-0


[Site "https://www.chess.com"]